Workbook

Sheet Recap
E1: Contrats
E2: au 19 mai 2025
B4: Assureur | C4: Reference | D4: Produit | E4: Souscripteur | F4: Date | G4: Investissement | H4: Valorisation | I4: + / - Value | J4: Performance | K4: Tx Moyen Annuel
B5: ='001000 L8 269576000'!B2 -> MonAvenir | C5: ='001000 L8 269576000'!C2 -> 001000 L8 269576000 | D5: ='001000 L8 269576000'!B5 -> AVENIR + | E5: ='001000 L8 269576000'!C5 -> Anne | F5: ='001000 L8 269576000'!B8 -> 2022-06-15 | G5: 55,000 | H5: 65,295 | I5: =tbl_Recap[[#This Row],[Valorisation]]-tbl_Recap[[#This Row],[Investissement]] -> 10,295 | J5: =tbl_Recap[[#This Row],[+ / - Value]]/tbl_Recap[[#This Row],[Investissement]] -> 18.7% | K5: 7.0%
B6: ='001000 L8 269701111'!B2 -> MonAvenir | C6: ='001000 L8 269701111'!C2 -> 001000 L8 269701111 | D6: ='001000 L8 269701111'!B5 -> AVENIR * | E6: ='001000 L8 269701111'!C5 -> Anne | F6: ='001000 L8 269701111'!B8 -> 2022-08-24 | G6: 70,000 | H6: 81,495 | I6: =tbl_Recap[[#This Row],[Valorisation]]-tbl_Recap[[#This Row],[Investissement]] -> 11,495 | J6: =tbl_Recap[[#This Row],[+ / - Value]]/tbl_Recap[[#This Row],[Investissement]] -> 16.4% | K6: 6.1%
B7: ='001000 L8 269682001'!B2 -> MonAvenir | C7: ='001000 L8 269682001'!C2 -> 001000 L8 269682001 | D7: ='001000 L8 269682001'!B5 -> AVENIR + | E7: ='001000 L8 269682001'!C5 -> Pierre | F7: ='001000 L8 269682001'!B8 -> 2022-08-08 | G7: 65,000 | H7: 70,428 | I7: =tbl_Recap[[#This Row],[Valorisation]]-tbl_Recap[[#This Row],[Investissement]] -> 5,428 | J7: =tbl_Recap[[#This Row],[+ / - Value]]/tbl_Recap[[#This Row],[Investissement]] -> 8.4% | K7: 3.8%
B8: ='001000 L8 269710000'!B2 -> MonAvenir | C8: ='001000 L8 269710000'!C2 -> 001000 L8 269710000 | D8: ='001000 L8 269710000'!B5 -> AVENIR + | E8: ='001000 L8 269710000'!C5 -> Pierre | F8: =tbl_Histo_AVENIR2_JL2[[#This Row],[Date]] -> 2022-08-29 | G8: 70,000 | H8: 80,415 | I8: =tbl_Recap[[#This Row],[Valorisation]]-tbl_Recap[[#This Row],[Investissement]] -> 10,415 | J8: =tbl_Recap[[#This Row],[+ / - Value]]/tbl_Recap[[#This Row],[Investissement]] -> 14.9% | K8: 5.5%
B9: ='444510920'!B2 -> Abeille | C9: ='444510920'!C2 -> 444510920 | D9: ='444510920'!B5 -> Miel 2 | E9: ='444510920'!C5 -> Pierre / Anne | F9: ='444510920'!B8 -> 2022-06-27 | G9: 60,000 | H9: 66,698 | I9: =tbl_Recap[[#This Row],[Valorisation]]-tbl_Recap[[#This Row],[Investissement]] -> 6,698 | J9: =tbl_Recap[[#This Row],[+ / - Value]]/tbl_Recap[[#This Row],[Investissement]] -> 11.2% | K9: 3.5%
B10: Total | G10: =SUBTOTAL(109,tbl_Recap[Investissement]) -> 320,000 | H10: =SUBTOTAL(109,tbl_Recap[Valorisation]) -> 364,331 | I10: =SUBTOTAL(109,tbl_Recap[+ / - Value]) -> 44,331 | J10: =tbl_Recap[[#Totals],[+ / - Value]]/tbl_Recap[[#Totals],[Investissement]] -> 13.9%

Sheet Cumul
A3: CONTRATS CUMULÉS
A4: Date | B4: Net Investi | C4: Valorisation | D4: +/- Value | E4: Rapport | H4: Bissextile | I4: Date | J4: Opération | K4: Net Investi | L4: Valorisation | M4: +/- Value | N4: Performance | O4: TMA net | P4: Invest. Moyen | Q4: Jours/Période | R4: Ans Cumul. | X4: Date | Y4: Cntrat | Z4: Net Investi | AA4: Valorisation | AB4: + / - Value | AC4: Rapport
A5: ='001000 L8 269576000'!B9 -> 2022-12-31 | B5: ='001000 L8 269576000'!D9+'001000 L8 269701111'!D9+'001000 L8 269682001'!D9+'001000 L8 269710000'!D9+'444510920'!D9 -> 315,000.00 | C5: ='001000 L8 269576000'!E9+'001000 L8 269701111'!E9+'001000 L8 269682001'!E9+'001000 L8 269710000'!E9+'444510920'!E9 -> 304,206.99 | D5: =C5-B5 -> -10,793.01 | E5: =D5/B5 -> -3% | X5: 2022-06-01 | Y5: 1 | Z5: 1000 | AA5: 1100 | AB5: =AA5-Z5 -> 100 | AC5: =AB5/Z5 -> 10%
A6: ='001000 L8 269576000'!B10 -> 2023-12-31 | B6: ='001000 L8 269576000'!D10+'001000 L8 269701111'!D10+'001000 L8 269682001'!D10+'001000 L8 269710000'!D10+'444510920'!D11 -> 296,000.00 | C6: ='001000 L8 269576000'!E10+'001000 L8 269701111'!E10+'001000 L8 269682001'!E10+'001000 L8 269710000'!E10+'444510920'!E11 -> 313,728.13 | D6: =C6-B6 -> 17,728.13 | E6: =D6/B6 -> 6% | X6: 2022-12-01 | Y6: 1 | Z6: 1000 | AA6: 1105 | AB6: =AA6-Z6 -> 105 | AC6: =AB6/Z6 -> 11%
A7: ='001000 L8 269576000'!B11 -> 2024-12-31 | B7: ='001000 L8 269576000'!D11+'001000 L8 269701111'!D11+'001000 L8 269682001'!D11+'001000 L8 269710000'!D11+'444510920'!D12 -> 296,000.00 | C7: ='001000 L8 269576000'!E11+'001000 L8 269701111'!E11+'001000 L8 269682001'!E11+'001000 L8 269710000'!E11+'444510920'!E12 -> 344,218.86 | D7: =C7-B7 -> 48,218.86 | E7: =D7/B7 -> 16% | X7: 2022-12-01 | Y7: 2 | Z7: 3000 | AA7: 3200 | AB7: =AA7-Z7 -> 200 | AC7: =AB7/Z7 -> 7%
A8: ='001000 L8 269576000'!B12 -> 2025-02-14 | B8: ='001000 L8 269576000'!D13+'001000 L8 269701111'!D12+'001000 L8 269682001'!D13+'001000 L8 269710000'!D12+'444510920'!D13 -> 320,000.00 | C8: ='001000 L8 269576000'!E13+'001000 L8 269701111'!E12+'001000 L8 269682001'!E13+'001000 L8 269710000'!E12+'444510920'!E14 -> 364,331.12 | D8: =C8-B8 -> 44,331.12 | E8: =D8/B8 -> 14% | X8: 2022-08-01 | Y8: 3 | Z8: 5000 | AA8: 5500 | AB8: =AA8-Z8 -> 500 | AC8: =AB8/Z8 -> 10%
AD9: 2022-12-01 | AE9: 3 | AF9: 5000 | AG9: 5600 | AH9: =AG9-AF9 -> 600 | AI9: =AH9/AF9 -> 12%
AD10: =#REF! ->  | AE10: =#REF! ->  | AF10: =#REF! ->  | AG10: =#REF! ->  | AH10: =AG10-AF10 ->  | AI10: =AH10/AF10 -> 
AD11: =#REF! ->  | AE11: =#REF! ->  | AF11: =#REF! ->  | AG11: =#REF! -> 

Sheet 001000 L8 269682001
B1: Assureur | C1: Référence
B2: MonAvenir | C2: 001000 L8 269682001
B4: Produit | C4: Souscripteur
B5: AVENIR + | C5: Pierre
E6: =B5 &" - " &C5 &" - " &TEXT(B8,"jj mmm aaaa") -> AVENIR + - Pierre - 08 août 2022
A7: Bissextile | B7: Date | C7: Opération | D7: Net Investi | E7: Valorisation | F7: +/- Value | G7: Performance | H7: TMA net | I7: Invest. Moyen | J7: Jours/Période | K7: Ans Cumul. | L7: Nb
A8: =IF(OR(MOD(YEAR(tbl_Histo_AVENIR2_JL1[[#This Row],[Date]]),400)=0,AND(MOD(YEAR(tbl_Histo_AVENIR2_JL1[[#This Row],[Date]]),4)=0,MOD(YEAR(tbl_Histo_AVENIR2_JL1[[#This Row],[Date]]),100)<>0)),366,365) -> 365 | B8: 2022-08-08 | C8: 50,000.00 | D8: =IFERROR(D7+tbl_Histo_AVENIR2_JL1[[#This Row],[Opération]],tbl_Histo_AVENIR2_JL1[[#This Row],[Opération]]) -> 50,000.00 | E8: 50,000.00 | F8: =tbl_Histo_AVENIR2_JL1[[#This Row],[Valorisation]]-tbl_Histo_AVENIR2_JL1[[#This Row],[Net Investi]] -> 0.00 | G8: =tbl_Histo_AVENIR2_JL1[[#This Row],[+/- Value]]/tbl_Histo_AVENIR2_JL1[[#This Row],[Net Investi]] -> 0% | H8: =IFERROR(tbl_Histo_AVENIR2_JL1[[#This Row],[+/- Value]]/tbl_Histo_AVENIR2_JL1[[#This Row],[Ans Cumul.]]/tbl_Histo_AVENIR2_JL1[[#This Row],[Invest. Moyen]],0) -> 0% | I8: =IFERROR(tbl_Histo_AVENIR2_JL1[[#This Row],[Nb]]/tbl_Histo_AVENIR2_JL1[[#This Row],[Bissextile]]/tbl_Histo_AVENIR2_JL1[[#This Row],[Ans Cumul.]],0) -> 0.00 | J8: =IFERROR(DATEDIF(B7,tbl_Histo_AVENIR2_JL1[[#This Row],[Date]],"D"),0) -> 0 | K8: =DATEDIF($B$8,tbl_Histo_AVENIR2_JL1[[#This Row],[Date]],"d")/tbl_Histo_AVENIR2_JL1[[#This Row],[Bissextile]] -> 0.00 | L8: =IFERROR(D7*tbl_Histo_AVENIR2_JL1[[#This Row],[Jours/Période]]+L7,0) -> 0.00
A9: =IF(OR(MOD(YEAR(tbl_Histo_AVENIR2_JL1[[#This Row],[Date]]),400)=0,AND(MOD(YEAR(tbl_Histo_AVENIR2_JL1[[#This Row],[Date]]),4)=0,MOD(YEAR(tbl_Histo_AVENIR2_JL1[[#This Row],[Date]]),100)<>0)),366,365) -> 365 | B9: 2022-12-31 | D9: =IFERROR(D8+tbl_Histo_AVENIR2_JL1[[#This Row],[Opération]],tbl_Histo_AVENIR2_JL1[[#This Row],[Opération]]) -> 50,000.00 | E9: 46,770.92 | F9: =tbl_Histo_AVENIR2_JL1[[#This Row],[Valorisation]]-tbl_Histo_AVENIR2_JL1[[#This Row],[Net Investi]] -> -3,229.08 | G9: =tbl_Histo_AVENIR2_JL1[[#This Row],[+/- Value]]/tbl_Histo_AVENIR2_JL1[[#This Row],[Net Investi]] -> -6% | H9: =IFERROR(tbl_Histo_AVENIR2_JL1[[#This Row],[+/- Value]]/tbl_Histo_AVENIR2_JL1[[#This Row],[Ans Cumul.]]/tbl_Histo_AVENIR2_JL1[[#This Row],[Invest. Moyen]],0) -> -16% | I9: =IFERROR(tbl_Histo_AVENIR2_JL1[[#This Row],[Nb]]/tbl_Histo_AVENIR2_JL1[[#This Row],[Bissextile]]/tbl_Histo_AVENIR2_JL1[[#This Row],[Ans Cumul.]],0) -> 50,000.00 | J9: =IFERROR(DATEDIF(B8,tbl_Histo_AVENIR2_JL1[[#This Row],[Date]],"D"),0) -> 145 | K9: =DATEDIF($B$8,tbl_Histo_AVENIR2_JL1[[#This Row],[Date]],"d")/tbl_Histo_AVENIR2_JL1[[#This Row],[Bissextile]] -> 0.40 | L9: =IFERROR(D8*tbl_Histo_AVENIR2_JL1[[#This Row],[Jours/Période]]+L8,0) -> 7,250,000.00
A10: =IF(OR(MOD(YEAR(tbl_Histo_AVENIR2_JL1[[#This Row],[Date]]),400)=0,AND(MOD(YEAR(tbl_Histo_AVENIR2_JL1[[#This Row],[Date]]),4)=0,MOD(YEAR(tbl_Histo_AVENIR2_JL1[[#This Row],[Date]]),100)<>0)),366,365) -> 365 | B10: 2023-12-31 | D10: =IFERROR(D9+tbl_Histo_AVENIR2_JL1[[#This Row],[Opération]],tbl_Histo_AVENIR2_JL1[[#This Row],[Opération]]) -> 50,000.00 | E10: 51,836.94 | F10: =tbl_Histo_AVENIR2_JL1[[#This Row],[Valorisation]]-tbl_Histo_AVENIR2_JL1[[#This Row],[Net Investi]] -> 1,836.94 | G10: =tbl_Histo_AVENIR2_JL1[[#This Row],[+/- Value]]/tbl_Histo_AVENIR2_JL1[[#This Row],[Net Investi]] -> 4% | H10: =IFERROR(tbl_Histo_AVENIR2_JL1[[#This Row],[+/- Value]]/tbl_Histo_AVENIR2_JL1[[#This Row],[Ans Cumul.]]/tbl_Histo_AVENIR2_JL1[[#This Row],[Invest. Moyen]],0) -> 3% | I10: =IFERROR(tbl_Histo_AVENIR2_JL1[[#This Row],[Nb]]/tbl_Histo_AVENIR2_JL1[[#This Row],[Bissextile]]/tbl_Histo_AVENIR2_JL1[[#This Row],[Ans Cumul.]],0) -> 50,000.00 | J10: =IFERROR(DATEDIF(B9,tbl_Histo_AVENIR2_JL1[[#This Row],[Date]],"D"),0) -> 365 | K10: =DATEDIF($B$8,tbl_Histo_AVENIR2_JL1[[#This Row],[Date]],"d")/tbl_Histo_AVENIR2_JL1[[#This Row],[Bissextile]] -> 1.40 | L10: =IFERROR(D9*tbl_Histo_AVENIR2_JL1[[#This Row],[Jours/Période]]+L9,0) -> 25,500,000.00
A11: =IF(OR(MOD(YEAR(tbl_Histo_AVENIR2_JL1[[#This Row],[Date]]),400)=0,AND(MOD(YEAR(tbl_Histo_AVENIR2_JL1[[#This Row],[Date]]),4)=0,MOD(YEAR(tbl_Histo_AVENIR2_JL1[[#This Row],[Date]]),100)<>0)),366,365) -> 366 | B11: 2024-12-31 | D11: =IFERROR(D10+tbl_Histo_AVENIR2_JL1[[#This Row],[Opération]],tbl_Histo_AVENIR2_JL1[[#This Row],[Opération]]) -> 50,000.00 | E11: 56,236.00 | F11: =tbl_Histo_AVENIR2_JL1[[#This Row],[Valorisation]]-tbl_Histo_AVENIR2_JL1[[#This Row],[Net Investi]] -> 6,236.00 | G11: =tbl_Histo_AVENIR2_JL1[[#This Row],[+/- Value]]/tbl_Histo_AVENIR2_JL1[[#This Row],[Net Investi]] -> 12% | H11: =IFERROR(tbl_Histo_AVENIR2_JL1[[#This Row],[+/- Value]]/tbl_Histo_AVENIR2_JL1[[#This Row],[Ans Cumul.]]/tbl_Histo_AVENIR2_JL1[[#This Row],[Invest. Moyen]],0) -> 5% | I11: =IFERROR(tbl_Histo_AVENIR2_JL1[[#This Row],[Nb]]/tbl_Histo_AVENIR2_JL1[[#This Row],[Bissextile]]/tbl_Histo_AVENIR2_JL1[[#This Row],[Ans Cumul.]],0) -> 50,000.00 | J11: =IFERROR(DATEDIF(B10,tbl_Histo_AVENIR2_JL1[[#This Row],[Date]],"D"),0) -> 366 | K11: =DATEDIF($B$8,tbl_Histo_AVENIR2_JL1[[#This Row],[Date]],"d")/tbl_Histo_AVENIR2_JL1[[#This Row],[Bissextile]] -> 2.39 | L11: =IFERROR(D10*tbl_Histo_AVENIR2_JL1[[#This Row],[Jours/Période]]+L10,0) -> 43,800,000.00
A12: =IF(OR(MOD(YEAR(tbl_Histo_AVENIR2_JL1[[#This Row],[Date]]),400)=0,AND(MOD(YEAR(tbl_Histo_AVENIR2_JL1[[#This Row],[Date]]),4)=0,MOD(YEAR(tbl_Histo_AVENIR2_JL1[[#This Row],[Date]]),100)<>0)),366,365) -> 365 | B12: 2025-02-14 | C12: 15,000.00 | D12: =IFERROR(D11+tbl_Histo_AVENIR2_JL1[[#This Row],[Opération]],tbl_Histo_AVENIR2_JL1[[#This Row],[Opération]]) -> 65,000.00 | E12: 73,500.00 | F12: =tbl_Histo_AVENIR2_JL1[[#This Row],[Valorisation]]-tbl_Histo_AVENIR2_JL1[[#This Row],[Net Investi]] -> 8,500.00 | G12: =tbl_Histo_AVENIR2_JL1[[#This Row],[+/- Value]]/tbl_Histo_AVENIR2_JL1[[#This Row],[Net Investi]] -> 13% | H12: =IFERROR(tbl_Histo_AVENIR2_JL1[[#This Row],[+/- Value]]/tbl_Histo_AVENIR2_JL1[[#This Row],[Ans Cumul.]]/tbl_Histo_AVENIR2_JL1[[#This Row],[Invest. Moyen]],0) -> 7% | I12: =IFERROR(tbl_Histo_AVENIR2_JL1[[#This Row],[Nb]]/tbl_Histo_AVENIR2_JL1[[#This Row],[Bissextile]]/tbl_Histo_AVENIR2_JL1[[#This Row],[Ans Cumul.]],0) -> 50,000.00 | J12: =IFERROR(DATEDIF(B11,tbl_Histo_AVENIR2_JL1[[#This Row],[Date]],"D"),0) -> 45 | K12: =DATEDIF($B$8,tbl_Histo_AVENIR2_JL1[[#This Row],[Date]],"d")/tbl_Histo_AVENIR2_JL1[[#This Row],[Bissextile]] -> 2.52 | L12: =IFERROR(D11*tbl_Histo_AVENIR2_JL1[[#This Row],[Jours/Période]]+L11,0) -> 46,050,000.00
A13: =IF(OR(MOD(YEAR(tbl_Histo_AVENIR2_JL1[[#This Row],[Date]]),400)=0,AND(MOD(YEAR(tbl_Histo_AVENIR2_JL1[[#This Row],[Date]]),4)=0,MOD(YEAR(tbl_Histo_AVENIR2_JL1[[#This Row],[Date]]),100)<>0)),366,365) -> 365 | B13: 2025-05-10 | D13: =IFERROR(D12+tbl_Histo_AVENIR2_JL1[[#This Row],[Opération]],tbl_Histo_AVENIR2_JL1[[#This Row],[Opération]]) -> 65,000.00 | E13: 70,428.10 | F13: =tbl_Histo_AVENIR2_JL1[[#This Row],[Valorisation]]-tbl_Histo_AVENIR2_JL1[[#This Row],[Net Investi]] -> 5,428.10 | G13: =tbl_Histo_AVENIR2_JL1[[#This Row],[+/- Value]]/tbl_Histo_AVENIR2_JL1[[#This Row],[Net Investi]] -> 8% | H13: =IFERROR(tbl_Histo_AVENIR2_JL1[[#This Row],[+/- Value]]/tbl_Histo_AVENIR2_JL1[[#This Row],[Ans Cumul.]]/tbl_Histo_AVENIR2_JL1[[#This Row],[Invest. Moyen]],0) -> 4% | I13: =IFERROR(tbl_Histo_AVENIR2_JL1[[#This Row],[Nb]]/tbl_Histo_AVENIR2_JL1[[#This Row],[Bissextile]]/tbl_Histo_AVENIR2_JL1[[#This Row],[Ans Cumul.]],0) -> 51,267.40 | J13: =IFERROR(DATEDIF(B12,tbl_Histo_AVENIR2_JL1[[#This Row],[Date]],"D"),0) -> 85 | K13: =DATEDIF($B$8,tbl_Histo_AVENIR2_JL1[[#This Row],[Date]],"d")/tbl_Histo_AVENIR2_JL1[[#This Row],[Bissextile]] -> 2.76 | L13: =IFERROR(D12*tbl_Histo_AVENIR2_JL1[[#This Row],[Jours/Période]]+L12,0) -> 51,575,000.00

Sheet 001000 L8 269710000
B1: Assureur | C1: Référence
B2: MonAvenir | C2: 001000 L8 269710000
B4: Produit | C4: Souscripteur
B5: AVENIR + | C5: Pierre
E6: =B5 &" - " &C5 &" - " &TEXT(B8,"jj mmm aaaa") -> AVENIR + - Pierre - 29 août 2022
A7: Bissextile | B7: Date | C7: Opération | D7: Net Investi | E7: Valorisation | F7: +/- Value | G7: Performance | H7: TMA net | I7: Invest. Moyen | J7: Jours/Période | K7: Ans Cumul. | L7: Nb Cumul
A8: =IF(OR(MOD(YEAR(tbl_Histo_AVENIR2_JL2[[#This Row],[Date]]),400)=0,AND(MOD(YEAR(tbl_Histo_AVENIR2_JL2[[#This Row],[Date]]),4)=0,MOD(YEAR(tbl_Histo_AVENIR2_JL2[[#This Row],[Date]]),100)<>0)),366,365) -> 365 | B8: 2022-08-29 | C8: 70,000.00 | D8: =IFERROR(D7+tbl_Histo_AVENIR2_JL2[[#This Row],[Opération]],tbl_Histo_AVENIR2_JL2[[#This Row],[Opération]]) -> 70,000.00 | E8: 70,000.00 | F8: =tbl_Histo_AVENIR2_JL2[[#This Row],[Valorisation]]-tbl_Histo_AVENIR2_JL2[[#This Row],[Net Investi]] -> 0.00 | G8: =tbl_Histo_AVENIR2_JL2[[#This Row],[+/- Value]]/tbl_Histo_AVENIR2_JL2[[#This Row],[Net Investi]] -> 0% | H8: =IFERROR(tbl_Histo_AVENIR2_JL2[[#This Row],[+/- Value]]/tbl_Histo_AVENIR2_JL2[[#This Row],[Ans Cumul.]]/tbl_Histo_AVENIR2_JL2[[#This Row],[Invest. Moyen]],0) -> 0% | I8: =IFERROR(tbl_Histo_AVENIR2_JL2[[#This Row],[Nb Cumul]]/tbl_Histo_AVENIR2_JL2[[#This Row],[Bissextile]]/tbl_Histo_AVENIR2_JL2[[#This Row],[Ans Cumul.]],0) -> 0.00 | J8: =IFERROR(DATEDIF(B7,tbl_Histo_AVENIR2_JL2[[#This Row],[Date]],"D"),0) -> 0 | K8: =DATEDIF($B$8,tbl_Histo_AVENIR2_JL2[[#This Row],[Date]],"d")/tbl_Histo_AVENIR2_JL2[[#This Row],[Bissextile]] -> 0.00 | L8: =IFERROR(D7*tbl_Histo_AVENIR2_JL2[[#This Row],[Jours/Période]]+L7,0) -> 0.00
A9: =IF(OR(MOD(YEAR(tbl_Histo_AVENIR2_JL2[[#This Row],[Date]]),400)=0,AND(MOD(YEAR(tbl_Histo_AVENIR2_JL2[[#This Row],[Date]]),4)=0,MOD(YEAR(tbl_Histo_AVENIR2_JL2[[#This Row],[Date]]),100)<>0)),366,365) -> 365 | B9: 2022-12-31 | D9: =IFERROR(D8+tbl_Histo_AVENIR2_JL2[[#This Row],[Opération]],tbl_Histo_AVENIR2_JL2[[#This Row],[Opération]]) -> 70,000.00 | E9: 68,053.95 | F9: =tbl_Histo_AVENIR2_JL2[[#This Row],[Valorisation]]-tbl_Histo_AVENIR2_JL2[[#This Row],[Net Investi]] -> -1,946.05 | G9: =tbl_Histo_AVENIR2_JL2[[#This Row],[+/- Value]]/tbl_Histo_AVENIR2_JL2[[#This Row],[Net Investi]] -> -3% | H9: =IFERROR(tbl_Histo_AVENIR2_JL2[[#This Row],[+/- Value]]/tbl_Histo_AVENIR2_JL2[[#This Row],[Ans Cumul.]]/tbl_Histo_AVENIR2_JL2[[#This Row],[Invest. Moyen]],0) -> -8% | I9: =IFERROR(tbl_Histo_AVENIR2_JL2[[#This Row],[Nb Cumul]]/tbl_Histo_AVENIR2_JL2[[#This Row],[Bissextile]]/tbl_Histo_AVENIR2_JL2[[#This Row],[Ans Cumul.]],0) -> 70,000.00 | J9: =IFERROR(DATEDIF(B8,tbl_Histo_AVENIR2_JL2[[#This Row],[Date]],"D"),0) -> 124 | K9: =DATEDIF($B$8,tbl_Histo_AVENIR2_JL2[[#This Row],[Date]],"d")/tbl_Histo_AVENIR2_JL2[[#This Row],[Bissextile]] -> 0.34 | L9: =IFERROR(D8*tbl_Histo_AVENIR2_JL2[[#This Row],[Jours/Période]]+L8,0) -> 8,680,000.00
A10: =IF(OR(MOD(YEAR(tbl_Histo_AVENIR2_JL2[[#This Row],[Date]]),400)=0,AND(MOD(YEAR(tbl_Histo_AVENIR2_JL2[[#This Row],[Date]]),4)=0,MOD(YEAR(tbl_Histo_AVENIR2_JL2[[#This Row],[Date]]),100)<>0)),366,365) -> 365 | B10: 2023-12-31 | D10: =IFERROR(D9+tbl_Histo_AVENIR2_JL2[[#This Row],[Opération]],tbl_Histo_AVENIR2_JL2[[#This Row],[Opération]]) -> 70,000.00 | E10: 74,444.12 | F10: =tbl_Histo_AVENIR2_JL2[[#This Row],[Valorisation]]-tbl_Histo_AVENIR2_JL2[[#This Row],[Net Investi]] -> 4,444.12 | G10: =tbl_Histo_AVENIR2_JL2[[#This Row],[+/- Value]]/tbl_Histo_AVENIR2_JL2[[#This Row],[Net Investi]] -> 6% | H10: =IFERROR(tbl_Histo_AVENIR2_JL2[[#This Row],[+/- Value]]/tbl_Histo_AVENIR2_JL2[[#This Row],[Ans Cumul.]]/tbl_Histo_AVENIR2_JL2[[#This Row],[Invest. Moyen]],0) -> 5% | I10: =IFERROR(tbl_Histo_AVENIR2_JL2[[#This Row],[Nb Cumul]]/tbl_Histo_AVENIR2_JL2[[#This Row],[Bissextile]]/tbl_Histo_AVENIR2_JL2[[#This Row],[Ans Cumul.]],0) -> 70,000.00 | J10: =IFERROR(DATEDIF(B9,tbl_Histo_AVENIR2_JL2[[#This Row],[Date]],"D"),0) -> 365 | K10: =DATEDIF($B$8,tbl_Histo_AVENIR2_JL2[[#This Row],[Date]],"d")/tbl_Histo_AVENIR2_JL2[[#This Row],[Bissextile]] -> 1.34 | L10: =IFERROR(D9*tbl_Histo_AVENIR2_JL2[[#This Row],[Jours/Période]]+L9,0) -> 34,230,000.00
A11: =IF(OR(MOD(YEAR(tbl_Histo_AVENIR2_JL2[[#This Row],[Date]]),400)=0,AND(MOD(YEAR(tbl_Histo_AVENIR2_JL2[[#This Row],[Date]]),4)=0,MOD(YEAR(tbl_Histo_AVENIR2_JL2[[#This Row],[Date]]),100)<>0)),366,365) -> 366 | B11: 2024-12-31 | D11: =IFERROR(D10+tbl_Histo_AVENIR2_JL2[[#This Row],[Opération]],tbl_Histo_AVENIR2_JL2[[#This Row],[Opération]]) -> 70,000.00 | E11: 80,854.00 | F11: =tbl_Histo_AVENIR2_JL2[[#This Row],[Valorisation]]-tbl_Histo_AVENIR2_JL2[[#This Row],[Net Investi]] -> 10,854.00 | G11: =tbl_Histo_AVENIR2_JL2[[#This Row],[+/- Value]]/tbl_Histo_AVENIR2_JL2[[#This Row],[Net Investi]] -> 16% | H11: =IFERROR(tbl_Histo_AVENIR2_JL2[[#This Row],[+/- Value]]/tbl_Histo_AVENIR2_JL2[[#This Row],[Ans Cumul.]]/tbl_Histo_AVENIR2_JL2[[#This Row],[Invest. Moyen]],0) -> 7% | I11: =IFERROR(tbl_Histo_AVENIR2_JL2[[#This Row],[Nb Cumul]]/tbl_Histo_AVENIR2_JL2[[#This Row],[Bissextile]]/tbl_Histo_AVENIR2_JL2[[#This Row],[Ans Cumul.]],0) -> 70,000.00 | J11: =IFERROR(DATEDIF(B10,tbl_Histo_AVENIR2_JL2[[#This Row],[Date]],"D"),0) -> 366 | K11: =DATEDIF($B$8,tbl_Histo_AVENIR2_JL2[[#This Row],[Date]],"d")/tbl_Histo_AVENIR2_JL2[[#This Row],[Bissextile]] -> 2.34 | L11: =IFERROR(D10*tbl_Histo_AVENIR2_JL2[[#This Row],[Jours/Période]]+L10,0) -> 59,850,000.00
A12: =IF(OR(MOD(YEAR(tbl_Histo_AVENIR2_JL2[[#This Row],[Date]]),400)=0,AND(MOD(YEAR(tbl_Histo_AVENIR2_JL2[[#This Row],[Date]]),4)=0,MOD(YEAR(tbl_Histo_AVENIR2_JL2[[#This Row],[Date]]),100)<>0)),366,365) -> 365 | B12: 2025-05-10 | D12: =IFERROR(D11+tbl_Histo_AVENIR2_JL2[[#This Row],[Opération]],tbl_Histo_AVENIR2_JL2[[#This Row],[Opération]]) -> 70,000.00 | E12: 80,415.25 | F12: =tbl_Histo_AVENIR2_JL2[[#This Row],[Valorisation]]-tbl_Histo_AVENIR2_JL2[[#This Row],[Net Investi]] -> 10,415.25 | G12: =tbl_Histo_AVENIR2_JL2[[#This Row],[+/- Value]]/tbl_Histo_AVENIR2_JL2[[#This Row],[Net Investi]] -> 15% | H12: =IFERROR(tbl_Histo_AVENIR2_JL2[[#This Row],[+/- Value]]/tbl_Histo_AVENIR2_JL2[[#This Row],[Ans Cumul.]]/tbl_Histo_AVENIR2_JL2[[#This Row],[Invest. Moyen]],0) -> 6% | I12: =IFERROR(tbl_Histo_AVENIR2_JL2[[#This Row],[Nb Cumul]]/tbl_Histo_AVENIR2_JL2[[#This Row],[Bissextile]]/tbl_Histo_AVENIR2_JL2[[#This Row],[Ans Cumul.]],0) -> 70,000.00 | J12: =IFERROR(DATEDIF(B11,tbl_Histo_AVENIR2_JL2[[#This Row],[Date]],"D"),0) -> 130 | K12: =DATEDIF($B$8,tbl_Histo_AVENIR2_JL2[[#This Row],[Date]],"d")/tbl_Histo_AVENIR2_JL2[[#This Row],[Bissextile]] -> 2.70 | L12: =IFERROR(D11*tbl_Histo_AVENIR2_JL2[[#This Row],[Jours/Période]]+L11,0) -> 68,950,000.00

Sheet 001000 L8 269576000
B1: Assureur | C1: Référence
B2: MonAvenir | C2: 001000 L8 269576000
B4: Produit | C4: Souscripteur
B5: AVENIR + | C5: Anne
E6: =B5 &" - " &C5 &" - " &TEXT(B8,"jj mmm aaaa") -> AVENIR + - Anne - 15 juin 2022
A7: Bissextile | B7: Date | C7: Opération | D7: Net Investi | E7: Valorisation | F7: +/- Value | G7: Performance | H7: TMA net | I7: Invest. Moyen | J7: Jours/Période | K7: Ans Cumul. | L7: Nb Cumul
A8: =IF(OR(MOD(YEAR(tbl_Histo_AVENIR2_CH1[[#This Row],[Date]]),400)=0,AND(MOD(YEAR(tbl_Histo_AVENIR2_CH1[[#This Row],[Date]]),4)=0,MOD(YEAR(tbl_Histo_AVENIR2_CH1[[#This Row],[Date]]),100)<>0)),366,365) -> 365 | B8: 2022-06-15 | C8: 50,000.00 | D8: =IFERROR(D7+tbl_Histo_AVENIR2_CH1[[#This Row],[Opération]],tbl_Histo_AVENIR2_CH1[[#This Row],[Opération]]) -> 50,000.00 | E8: 50,000.00 | F8: =tbl_Histo_AVENIR2_CH1[[#This Row],[Valorisation]]-tbl_Histo_AVENIR2_CH1[[#This Row],[Net Investi]] -> 0.00 | G8: =tbl_Histo_AVENIR2_CH1[[#This Row],[+/- Value]]/tbl_Histo_AVENIR2_CH1[[#This Row],[Net Investi]] -> 0% | H8: =IFERROR(tbl_Histo_AVENIR2_CH1[[#This Row],[+/- Value]]/tbl_Histo_AVENIR2_CH1[[#This Row],[Ans Cumul.]]/tbl_Histo_AVENIR2_CH1[[#This Row],[Invest. Moyen]],0) -> 0% | I8: =IFERROR(tbl_Histo_AVENIR2_CH1[[#This Row],[Nb Cumul]]/tbl_Histo_AVENIR2_CH1[[#This Row],[Bissextile]]/tbl_Histo_AVENIR2_CH1[[#This Row],[Ans Cumul.]],0) -> 0.00 | J8: =IFERROR(DATEDIF(B7,tbl_Histo_AVENIR2_CH1[[#This Row],[Date]],"D"),0) -> 0 | K8: =DATEDIF($B$8,tbl_Histo_AVENIR2_CH1[[#This Row],[Date]],"d")/tbl_Histo_AVENIR2_CH1[[#This Row],[Bissextile]] -> 0.00 | L8: =IFERROR(D7*tbl_Histo_AVENIR2_CH1[[#This Row],[Jours/Période]]+L7,0) -> 0.00
A9: =IF(OR(MOD(YEAR(tbl_Histo_AVENIR2_CH1[[#This Row],[Date]]),400)=0,AND(MOD(YEAR(tbl_Histo_AVENIR2_CH1[[#This Row],[Date]]),4)=0,MOD(YEAR(tbl_Histo_AVENIR2_CH1[[#This Row],[Date]]),100)<>0)),366,365) -> 365 | B9: 2022-12-31 | D9: =IFERROR(D8+tbl_Histo_AVENIR2_CH1[[#This Row],[Opération]],tbl_Histo_AVENIR2_CH1[[#This Row],[Opération]]) -> 50,000.00 | E9: 50,455.28 | F9: =tbl_Histo_AVENIR2_CH1[[#This Row],[Valorisation]]-tbl_Histo_AVENIR2_CH1[[#This Row],[Net Investi]] -> 455.28 | G9: =tbl_Histo_AVENIR2_CH1[[#This Row],[+/- Value]]/tbl_Histo_AVENIR2_CH1[[#This Row],[Net Investi]] -> 1% | H9: =IFERROR(tbl_Histo_AVENIR2_CH1[[#This Row],[+/- Value]]/tbl_Histo_AVENIR2_CH1[[#This Row],[Ans Cumul.]]/tbl_Histo_AVENIR2_CH1[[#This Row],[Invest. Moyen]],0) -> 2% | I9: =IFERROR(tbl_Histo_AVENIR2_CH1[[#This Row],[Nb Cumul]]/tbl_Histo_AVENIR2_CH1[[#This Row],[Bissextile]]/tbl_Histo_AVENIR2_CH1[[#This Row],[Ans Cumul.]],0) -> 50,000.00 | J9: =IFERROR(DATEDIF(B8,tbl_Histo_AVENIR2_CH1[[#This Row],[Date]],"D"),0) -> 199 | K9: =DATEDIF($B$8,tbl_Histo_AVENIR2_CH1[[#This Row],[Date]],"d")/tbl_Histo_AVENIR2_CH1[[#This Row],[Bissextile]] -> 0.55 | L9: =IFERROR(D8*tbl_Histo_AVENIR2_CH1[[#This Row],[Jours/Période]]+L8,0) -> 9,950,000.00
A10: =IF(OR(MOD(YEAR(tbl_Histo_AVENIR2_CH1[[#This Row],[Date]]),400)=0,AND(MOD(YEAR(tbl_Histo_AVENIR2_CH1[[#This Row],[Date]]),4)=0,MOD(YEAR(tbl_Histo_AVENIR2_CH1[[#This Row],[Date]]),100)<>0)),366,365) -> 365 | B10: 2023-12-31 | D10: =IFERROR(D9+tbl_Histo_AVENIR2_CH1[[#This Row],[Opération]],tbl_Histo_AVENIR2_CH1[[#This Row],[Opération]]) -> 50,000.00 | E10: 55,302.23 | F10: =tbl_Histo_AVENIR2_CH1[[#This Row],[Valorisation]]-tbl_Histo_AVENIR2_CH1[[#This Row],[Net Investi]] -> 5,302.23 | G10: =tbl_Histo_AVENIR2_CH1[[#This Row],[+/- Value]]/tbl_Histo_AVENIR2_CH1[[#This Row],[Net Investi]] -> 11% | H10: =IFERROR(tbl_Histo_AVENIR2_CH1[[#This Row],[+/- Value]]/tbl_Histo_AVENIR2_CH1[[#This Row],[Ans Cumul.]]/tbl_Histo_AVENIR2_CH1[[#This Row],[Invest. Moyen]],0) -> 7% | I10: =IFERROR(tbl_Histo_AVENIR2_CH1[[#This Row],[Nb Cumul]]/tbl_Histo_AVENIR2_CH1[[#This Row],[Bissextile]]/tbl_Histo_AVENIR2_CH1[[#This Row],[Ans Cumul.]],0) -> 50,000.00 | J10: =IFERROR(DATEDIF(B9,tbl_Histo_AVENIR2_CH1[[#This Row],[Date]],"D"),0) -> 365 | K10: =DATEDIF($B$8,tbl_Histo_AVENIR2_CH1[[#This Row],[Date]],"d")/tbl_Histo_AVENIR2_CH1[[#This Row],[Bissextile]] -> 1.55 | L10: =IFERROR(D9*tbl_Histo_AVENIR2_CH1[[#This Row],[Jours/Période]]+L9,0) -> 28,200,000.00
A11: =IF(OR(MOD(YEAR(tbl_Histo_AVENIR2_CH1[[#This Row],[Date]]),400)=0,AND(MOD(YEAR(tbl_Histo_AVENIR2_CH1[[#This Row],[Date]]),4)=0,MOD(YEAR(tbl_Histo_AVENIR2_CH1[[#This Row],[Date]]),100)<>0)),366,365) -> 366 | B11: 2024-12-31 | D11: =IFERROR(D10+tbl_Histo_AVENIR2_CH1[[#This Row],[Opération]],tbl_Histo_AVENIR2_CH1[[#This Row],[Opération]]) -> 50,000.00 | E11: 60,996.00 | F11: =tbl_Histo_AVENIR2_CH1[[#This Row],[Valorisation]]-tbl_Histo_AVENIR2_CH1[[#This Row],[Net Investi]] -> 10,996.00 | G11: =tbl_Histo_AVENIR2_CH1[[#This Row],[+/- Value]]/tbl_Histo_AVENIR2_CH1[[#This Row],[Net Investi]] -> 22% | H11: =IFERROR(tbl_Histo_AVENIR2_CH1[[#This Row],[+/- Value]]/tbl_Histo_AVENIR2_CH1[[#This Row],[Ans Cumul.]]/tbl_Histo_AVENIR2_CH1[[#This Row],[Invest. Moyen]],0) -> 9% | I11: =IFERROR(tbl_Histo_AVENIR2_CH1[[#This Row],[Nb Cumul]]/tbl_Histo_AVENIR2_CH1[[#This Row],[Bissextile]]/tbl_Histo_AVENIR2_CH1[[#This Row],[Ans Cumul.]],0) -> 50,000.00 | J11: =IFERROR(DATEDIF(B10,tbl_Histo_AVENIR2_CH1[[#This Row],[Date]],"D"),0) -> 366 | K11: =DATEDIF($B$8,tbl_Histo_AVENIR2_CH1[[#This Row],[Date]],"d")/tbl_Histo_AVENIR2_CH1[[#This Row],[Bissextile]] -> 2.54 | L11: =IFERROR(D10*tbl_Histo_AVENIR2_CH1[[#This Row],[Jours/Période]]+L10,0) -> 46,500,000.00
A12: =IF(OR(MOD(YEAR(tbl_Histo_AVENIR2_CH1[[#This Row],[Date]]),400)=0,AND(MOD(YEAR(tbl_Histo_AVENIR2_CH1[[#This Row],[Date]]),4)=0,MOD(YEAR(tbl_Histo_AVENIR2_CH1[[#This Row],[Date]]),100)<>0)),366,365) -> 365 | B12: 2025-02-14 | C12: 5,000.00 | D12: =IFERROR(D11+tbl_Histo_AVENIR2_CH1[[#This Row],[Opération]],tbl_Histo_AVENIR2_CH1[[#This Row],[Opération]]) -> 55,000.00 | E12: 67,900.00 | F12: =tbl_Histo_AVENIR2_CH1[[#This Row],[Valorisation]]-tbl_Histo_AVENIR2_CH1[[#This Row],[Net Investi]] -> 12,900.00 | G12: =tbl_Histo_AVENIR2_CH1[[#This Row],[+/- Value]]/tbl_Histo_AVENIR2_CH1[[#This Row],[Net Investi]] -> 23% | H12: =IFERROR(tbl_Histo_AVENIR2_CH1[[#This Row],[+/- Value]]/tbl_Histo_AVENIR2_CH1[[#This Row],[Ans Cumul.]]/tbl_Histo_AVENIR2_CH1[[#This Row],[Invest. Moyen]],0) -> 10% | I12: =IFERROR(tbl_Histo_AVENIR2_CH1[[#This Row],[Nb Cumul]]/tbl_Histo_AVENIR2_CH1[[#This Row],[Bissextile]]/tbl_Histo_AVENIR2_CH1[[#This Row],[Ans Cumul.]],0) -> 50,000.00 | J12: =IFERROR(DATEDIF(B11,tbl_Histo_AVENIR2_CH1[[#This Row],[Date]],"D"),0) -> 45 | K12: =DATEDIF($B$8,tbl_Histo_AVENIR2_CH1[[#This Row],[Date]],"d")/tbl_Histo_AVENIR2_CH1[[#This Row],[Bissextile]] -> 2.67 | L12: =IFERROR(D11*tbl_Histo_AVENIR2_CH1[[#This Row],[Jours/Période]]+L11,0) -> 48,750,000.00
A13: =IF(OR(MOD(YEAR(tbl_Histo_AVENIR2_CH1[[#This Row],[Date]]),400)=0,AND(MOD(YEAR(tbl_Histo_AVENIR2_CH1[[#This Row],[Date]]),4)=0,MOD(YEAR(tbl_Histo_AVENIR2_CH1[[#This Row],[Date]]),100)<>0)),366,365) -> 365 | B13: 2025-05-10 | D13: =IFERROR(D12+tbl_Histo_AVENIR2_CH1[[#This Row],[Opération]],tbl_Histo_AVENIR2_CH1[[#This Row],[Opération]]) -> 55,000.00 | E13: 65,295.22 | F13: =tbl_Histo_AVENIR2_CH1[[#This Row],[Valorisation]]-tbl_Histo_AVENIR2_CH1[[#This Row],[Net Investi]] -> 10,295.22 | G13: =tbl_Histo_AVENIR2_CH1[[#This Row],[+/- Value]]/tbl_Histo_AVENIR2_CH1[[#This Row],[Net Investi]] -> 19% | H13: =IFERROR(tbl_Histo_AVENIR2_CH1[[#This Row],[+/- Value]]/tbl_Histo_AVENIR2_CH1[[#This Row],[Ans Cumul.]]/tbl_Histo_AVENIR2_CH1[[#This Row],[Invest. Moyen]],0) -> 7% | I13: =IFERROR(tbl_Histo_AVENIR2_CH1[[#This Row],[Nb Cumul]]/tbl_Histo_AVENIR2_CH1[[#This Row],[Bissextile]]/tbl_Histo_AVENIR2_CH1[[#This Row],[Ans Cumul.]],0) -> 50,400.94 | J13: =IFERROR(DATEDIF(B12,tbl_Histo_AVENIR2_CH1[[#This Row],[Date]],"D"),0) -> 85 | K13: =DATEDIF($B$8,tbl_Histo_AVENIR2_CH1[[#This Row],[Date]],"d")/tbl_Histo_AVENIR2_CH1[[#This Row],[Bissextile]] -> 2.90 | L13: =IFERROR(D12*tbl_Histo_AVENIR2_CH1[[#This Row],[Jours/Période]]+L12,0) -> 53,425,000.00

Sheet 001000 L8 269701111
B1: Assureur | C1: Référence
B2: MonAvenir | C2: 001000 L8 269701111
B4: Produit | C4: Souscripteur
B5: AVENIR * | C5: Anne
E6: =B5 &" - " &C5 &" - " &TEXT(B8,"jj mmm aaaa") -> AVENIR * - Anne - 24 août 2022
A7: Bissextile | B7: Date | C7: Opération | D7: Net Investi | E7: Valorisation | F7: +/- Value | G7: Performance | H7: TMA net | I7: Invest. Moyen | J7: Jours/Période | K7: Ans Cumul. | L7: Nb Cumul
A8: =IF(OR(MOD(YEAR(tbl_Histo_AVENIR2_CH2[[#This Row],[Date]]),400)=0,AND(MOD(YEAR(tbl_Histo_AVENIR2_CH2[[#This Row],[Date]]),4)=0,MOD(YEAR(tbl_Histo_AVENIR2_CH2[[#This Row],[Date]]),100)<>0)),366,365) -> 365 | B8: 2022-08-24 | C8: 70,000.00 | D8: =IFERROR(D7+tbl_Histo_AVENIR2_CH2[[#This Row],[Opération]],tbl_Histo_AVENIR2_CH2[[#This Row],[Opération]]) -> 70,000.00 | E8: 70,000.00 | F8: =tbl_Histo_AVENIR2_CH2[[#This Row],[Valorisation]]-tbl_Histo_AVENIR2_CH2[[#This Row],[Net Investi]] -> 0.00 | G8: =tbl_Histo_AVENIR2_CH2[[#This Row],[+/- Value]]/tbl_Histo_AVENIR2_CH2[[#This Row],[Net Investi]] -> 0% | H8: =IFERROR(tbl_Histo_AVENIR2_CH2[[#This Row],[+/- Value]]/tbl_Histo_AVENIR2_CH2[[#This Row],[Ans Cumul.]]/tbl_Histo_AVENIR2_CH2[[#This Row],[Invest. Moyen]],0) -> 0% | I8: =IFERROR(tbl_Histo_AVENIR2_CH2[[#This Row],[Nb Cumul]]/tbl_Histo_AVENIR2_CH2[[#This Row],[Bissextile]]/tbl_Histo_AVENIR2_CH2[[#This Row],[Ans Cumul.]],0) -> 0.00 | J8: =IFERROR(DATEDIF(B7,tbl_Histo_AVENIR2_CH2[[#This Row],[Date]],"D"),0) -> 0 | K8: =DATEDIF($B$8,tbl_Histo_AVENIR2_CH2[[#This Row],[Date]],"D")/tbl_Histo_AVENIR2_CH2[[#This Row],[Bissextile]] -> 0.00 | L8: =IFERROR(D7*tbl_Histo_AVENIR2_CH2[[#This Row],[Jours/Période]]+L7,0) -> 0
A9: =IF(OR(MOD(YEAR(tbl_Histo_AVENIR2_CH2[[#This Row],[Date]]),400)=0,AND(MOD(YEAR(tbl_Histo_AVENIR2_CH2[[#This Row],[Date]]),4)=0,MOD(YEAR(tbl_Histo_AVENIR2_CH2[[#This Row],[Date]]),100)<>0)),366,365) -> 365 | B9: 2022-12-31 | D9: =IFERROR(D8+tbl_Histo_AVENIR2_CH2[[#This Row],[Opération]],tbl_Histo_AVENIR2_CH2[[#This Row],[Opération]]) -> 70,000.00 | E9: 67,584.97 | F9: =tbl_Histo_AVENIR2_CH2[[#This Row],[Valorisation]]-tbl_Histo_AVENIR2_CH2[[#This Row],[Net Investi]] -> -2,415.03 | G9: =tbl_Histo_AVENIR2_CH2[[#This Row],[+/- Value]]/tbl_Histo_AVENIR2_CH2[[#This Row],[Net Investi]] -> -3% | H9: =IFERROR(tbl_Histo_AVENIR2_CH2[[#This Row],[+/- Value]]/tbl_Histo_AVENIR2_CH2[[#This Row],[Ans Cumul.]]/tbl_Histo_AVENIR2_CH2[[#This Row],[Invest. Moyen]],0) -> -10% | I9: =IFERROR(tbl_Histo_AVENIR2_CH2[[#This Row],[Nb Cumul]]/tbl_Histo_AVENIR2_CH2[[#This Row],[Bissextile]]/tbl_Histo_AVENIR2_CH2[[#This Row],[Ans Cumul.]],0) -> 70,000.00 | J9: =IFERROR(DATEDIF(B8,tbl_Histo_AVENIR2_CH2[[#This Row],[Date]],"D"),0) -> 129 | K9: =DATEDIF($B$8,tbl_Histo_AVENIR2_CH2[[#This Row],[Date]],"D")/tbl_Histo_AVENIR2_CH2[[#This Row],[Bissextile]] -> 0.35 | L9: =IFERROR(D8*tbl_Histo_AVENIR2_CH2[[#This Row],[Jours/Période]]+L8,0) -> 9,030,000
A10: =IF(OR(MOD(YEAR(tbl_Histo_AVENIR2_CH2[[#This Row],[Date]]),400)=0,AND(MOD(YEAR(tbl_Histo_AVENIR2_CH2[[#This Row],[Date]]),4)=0,MOD(YEAR(tbl_Histo_AVENIR2_CH2[[#This Row],[Date]]),100)<>0)),366,365) -> 365 | B10: 2023-12-31 | D10: =IFERROR(D9+tbl_Histo_AVENIR2_CH2[[#This Row],[Opération]],tbl_Histo_AVENIR2_CH2[[#This Row],[Opération]]) -> 70,000.00 | E10: 73,905.52 | F10: =tbl_Histo_AVENIR2_CH2[[#This Row],[Valorisation]]-tbl_Histo_AVENIR2_CH2[[#This Row],[Net Investi]] -> 3,905.52 | G10: =tbl_Histo_AVENIR2_CH2[[#This Row],[+/- Value]]/tbl_Histo_AVENIR2_CH2[[#This Row],[Net Investi]] -> 6% | H10: =IFERROR(tbl_Histo_AVENIR2_CH2[[#This Row],[+/- Value]]/tbl_Histo_AVENIR2_CH2[[#This Row],[Ans Cumul.]]/tbl_Histo_AVENIR2_CH2[[#This Row],[Invest. Moyen]],0) -> 4% | I10: =IFERROR(tbl_Histo_AVENIR2_CH2[[#This Row],[Nb Cumul]]/tbl_Histo_AVENIR2_CH2[[#This Row],[Bissextile]]/tbl_Histo_AVENIR2_CH2[[#This Row],[Ans Cumul.]],0) -> 70,000.00 | J10: =IFERROR(DATEDIF(B9,tbl_Histo_AVENIR2_CH2[[#This Row],[Date]],"D"),0) -> 365 | K10: =DATEDIF($B$8,tbl_Histo_AVENIR2_CH2[[#This Row],[Date]],"D")/tbl_Histo_AVENIR2_CH2[[#This Row],[Bissextile]] -> 1.35 | L10: =IFERROR(D9*tbl_Histo_AVENIR2_CH2[[#This Row],[Jours/Période]]+L9,0) -> 34,580,000
A11: =IF(OR(MOD(YEAR(tbl_Histo_AVENIR2_CH2[[#This Row],[Date]]),400)=0,AND(MOD(YEAR(tbl_Histo_AVENIR2_CH2[[#This Row],[Date]]),4)=0,MOD(YEAR(tbl_Histo_AVENIR2_CH2[[#This Row],[Date]]),100)<>0)),366,365) -> 366 | B11: 2024-12-31 | D11: =IFERROR(D10+tbl_Histo_AVENIR2_CH2[[#This Row],[Opération]],tbl_Histo_AVENIR2_CH2[[#This Row],[Opération]]) -> 70,000.00 | E11: 81,905.00 | F11: =tbl_Histo_AVENIR2_CH2[[#This Row],[Valorisation]]-tbl_Histo_AVENIR2_CH2[[#This Row],[Net Investi]] -> 11,905.00 | G11: =tbl_Histo_AVENIR2_CH2[[#This Row],[+/- Value]]/tbl_Histo_AVENIR2_CH2[[#This Row],[Net Investi]] -> 17% | H11: =IFERROR(tbl_Histo_AVENIR2_CH2[[#This Row],[+/- Value]]/tbl_Histo_AVENIR2_CH2[[#This Row],[Ans Cumul.]]/tbl_Histo_AVENIR2_CH2[[#This Row],[Invest. Moyen]],0) -> 7% | I11: =IFERROR(tbl_Histo_AVENIR2_CH2[[#This Row],[Nb Cumul]]/tbl_Histo_AVENIR2_CH2[[#This Row],[Bissextile]]/tbl_Histo_AVENIR2_CH2[[#This Row],[Ans Cumul.]],0) -> 70,000.00 | J11: =IFERROR(DATEDIF(B10,tbl_Histo_AVENIR2_CH2[[#This Row],[Date]],"D"),0) -> 366 | K11: =DATEDIF($B$8,tbl_Histo_AVENIR2_CH2[[#This Row],[Date]],"D")/tbl_Histo_AVENIR2_CH2[[#This Row],[Bissextile]] -> 2.35 | L11: =IFERROR(D10*tbl_Histo_AVENIR2_CH2[[#This Row],[Jours/Période]]+L10,0) -> 60,200,000
A12: =IF(OR(MOD(YEAR(tbl_Histo_AVENIR2_CH2[[#This Row],[Date]]),400)=0,AND(MOD(YEAR(tbl_Histo_AVENIR2_CH2[[#This Row],[Date]]),4)=0,MOD(YEAR(tbl_Histo_AVENIR2_CH2[[#This Row],[Date]]),100)<>0)),366,365) -> 365 | B12: 2025-05-10 | D12: =IFERROR(D11+tbl_Histo_AVENIR2_CH2[[#This Row],[Opération]],tbl_Histo_AVENIR2_CH2[[#This Row],[Opération]]) -> 70,000.00 | E12: 81,494.87 | F12: =tbl_Histo_AVENIR2_CH2[[#This Row],[Valorisation]]-tbl_Histo_AVENIR2_CH2[[#This Row],[Net Investi]] -> 11,494.87 | G12: =tbl_Histo_AVENIR2_CH2[[#This Row],[+/- Value]]/tbl_Histo_AVENIR2_CH2[[#This Row],[Net Investi]] -> 16% | H12: =IFERROR(tbl_Histo_AVENIR2_CH2[[#This Row],[+/- Value]]/tbl_Histo_AVENIR2_CH2[[#This Row],[Ans Cumul.]]/tbl_Histo_AVENIR2_CH2[[#This Row],[Invest. Moyen]],0) -> 6% | I12: =IFERROR(tbl_Histo_AVENIR2_CH2[[#This Row],[Nb Cumul]]/tbl_Histo_AVENIR2_CH2[[#This Row],[Bissextile]]/tbl_Histo_AVENIR2_CH2[[#This Row],[Ans Cumul.]],0) -> 70,000.00 | J12: =IFERROR(DATEDIF(B11,tbl_Histo_AVENIR2_CH2[[#This Row],[Date]],"D"),0) -> 130 | K12: =DATEDIF($B$8,tbl_Histo_AVENIR2_CH2[[#This Row],[Date]],"D")/tbl_Histo_AVENIR2_CH2[[#This Row],[Bissextile]] -> 2.71 | L12: =IFERROR(D11*tbl_Histo_AVENIR2_CH2[[#This Row],[Jours/Période]]+L11,0) -> 69,300,000

Sheet 444510920
B1: Assureur | C1: Référence
B2: Abeille | C2: 444510920
B4: Produit | C4: Souscripteur
B5: Miel 2 | C5: Pierre / Anne
E6: =B5 &" - " &C5 &" - " &TEXT(B8,"jj mmm aaaa") -> Miel 2 - Pierre / Anne - 27 juin 2022
A7: Bissextile | B7: Date | C7: Opération | D7: Net Investi | E7: Valorisation | F7: +/- Value | G7: Performance | H7: TMA net | I7: Invest. Moyen | J7: Jours/Période | K7: Ans Cumul. | L7: Nb Cumul
A8: =IF(OR(MOD(YEAR(tbl_Histo_SPIRIT2[[#This Row],[Date]]),400)=0,AND(MOD(YEAR(tbl_Histo_SPIRIT2[[#This Row],[Date]]),4)=0,MOD(YEAR(tbl_Histo_SPIRIT2[[#This Row],[Date]]),100)<>0)),366,365) -> 365 | B8: 2022-06-27 | C8: 75,000.00 | D8: =IFERROR(D7+tbl_Histo_SPIRIT2[[#This Row],[Opération]],tbl_Histo_SPIRIT2[[#This Row],[Opération]]) -> 75,000.00 | E8: 75,000.00 | F8: =tbl_Histo_SPIRIT2[[#This Row],[Valorisation]]-tbl_Histo_SPIRIT2[[#This Row],[Net Investi]] -> 0.00 | G8: =tbl_Histo_SPIRIT2[[#This Row],[ +/- Value]]/tbl_Histo_SPIRIT2[[#This Row],[Net Investi]] -> 0% | H8: =IFERROR(tbl_Histo_SPIRIT2[[#This Row],[ +/- Value]]/tbl_Histo_SPIRIT2[[#This Row],[Ans Cumul.]]/tbl_Histo_SPIRIT2[[#This Row],[Invest. Moyen]],0) -> 0% | I8: =IFERROR(tbl_Histo_SPIRIT2[[#This Row],[Nb Cumul]]/tbl_Histo_SPIRIT2[[#This Row],[Bissextile]]/tbl_Histo_SPIRIT2[[#This Row],[Ans Cumul.]],0) -> 0.00 | J8: =IFERROR(DATEDIF(B7,tbl_Histo_SPIRIT2[[#This Row],[Date]],"D"),0) -> 0 | K8: =DATEDIF($B$8,tbl_Histo_SPIRIT2[[#This Row],[Date]],"D")/tbl_Histo_SPIRIT2[[#This Row],[Bissextile]] -> 0.00 | L8: =IFERROR(D7*tbl_Histo_SPIRIT2[[#This Row],[Jours/Période]]+L7,0) -> 0
A9: =IF(OR(MOD(YEAR(tbl_Histo_SPIRIT2[[#This Row],[Date]]),400)=0,AND(MOD(YEAR(tbl_Histo_SPIRIT2[[#This Row],[Date]]),4)=0,MOD(YEAR(tbl_Histo_SPIRIT2[[#This Row],[Date]]),100)<>0)),366,365) -> 365 | B9: 2022-12-31 | D9: =IFERROR(D8+tbl_Histo_SPIRIT2[[#This Row],[Opération]],tbl_Histo_SPIRIT2[[#This Row],[Opération]]) -> 75,000.00 | E9: 71,341.87 | F9: =tbl_Histo_SPIRIT2[[#This Row],[Valorisation]]-tbl_Histo_SPIRIT2[[#This Row],[Net Investi]] -> -3,658.13 | G9: =tbl_Histo_SPIRIT2[[#This Row],[ +/- Value]]/tbl_Histo_SPIRIT2[[#This Row],[Net Investi]] -> -5% | H9: =IFERROR(tbl_Histo_SPIRIT2[[#This Row],[ +/- Value]]/tbl_Histo_SPIRIT2[[#This Row],[Ans Cumul.]]/tbl_Histo_SPIRIT2[[#This Row],[Invest. Moyen]],0) -> -10% | I9: =IFERROR(tbl_Histo_SPIRIT2[[#This Row],[Nb Cumul]]/tbl_Histo_SPIRIT2[[#This Row],[Bissextile]]/tbl_Histo_SPIRIT2[[#This Row],[Ans Cumul.]],0) -> 75,000.00 | J9: =IFERROR(DATEDIF(B8,tbl_Histo_SPIRIT2[[#This Row],[Date]],"D"),0) -> 187 | K9: =DATEDIF($B$8,tbl_Histo_SPIRIT2[[#This Row],[Date]],"D")/tbl_Histo_SPIRIT2[[#This Row],[Bissextile]] -> 0.51 | L9: =IFERROR(D8*tbl_Histo_SPIRIT2[[#This Row],[Jours/Période]]+L8,0) -> 14,025,000
A10: =IF(OR(MOD(YEAR(tbl_Histo_SPIRIT2[[#This Row],[Date]]),400)=0,AND(MOD(YEAR(tbl_Histo_SPIRIT2[[#This Row],[Date]]),4)=0,MOD(YEAR(tbl_Histo_SPIRIT2[[#This Row],[Date]]),100)<>0)),366,365) -> 365 | B10: 2023-12-06 | C10: (19,000.00) | D10: =IFERROR(D9+tbl_Histo_SPIRIT2[[#This Row],[Opération]],tbl_Histo_SPIRIT2[[#This Row],[Opération]]) -> 56,000.00 | E10: 57,547.16 | F10: =tbl_Histo_SPIRIT2[[#This Row],[Valorisation]]-tbl_Histo_SPIRIT2[[#This Row],[Net Investi]] -> 1,547.16 | G10: =tbl_Histo_SPIRIT2[[#This Row],[ +/- Value]]/tbl_Histo_SPIRIT2[[#This Row],[Net Investi]] -> 3% | H10: =IFERROR(tbl_Histo_SPIRIT2[[#This Row],[ +/- Value]]/tbl_Histo_SPIRIT2[[#This Row],[Ans Cumul.]]/tbl_Histo_SPIRIT2[[#This Row],[Invest. Moyen]],0) -> 1% | I10: =IFERROR(tbl_Histo_SPIRIT2[[#This Row],[Nb Cumul]]/tbl_Histo_SPIRIT2[[#This Row],[Bissextile]]/tbl_Histo_SPIRIT2[[#This Row],[Ans Cumul.]],0) -> 75,000.00 | J10: =IFERROR(DATEDIF(B9,tbl_Histo_SPIRIT2[[#This Row],[Date]],"D"),0) -> 340 | K10: =DATEDIF($B$8,tbl_Histo_SPIRIT2[[#This Row],[Date]],"D")/tbl_Histo_SPIRIT2[[#This Row],[Bissextile]] -> 1.44 | L10: =IFERROR(D9*tbl_Histo_SPIRIT2[[#This Row],[Jours/Période]]+L9,0) -> 39,525,000
A11: =IF(OR(MOD(YEAR(tbl_Histo_SPIRIT2[[#This Row],[Date]]),400)=0,AND(MOD(YEAR(tbl_Histo_SPIRIT2[[#This Row],[Date]]),4)=0,MOD(YEAR(tbl_Histo_SPIRIT2[[#This Row],[Date]]),100)<>0)),366,365) -> 365 | B11: 2023-12-31 | D11: =IFERROR(D10+tbl_Histo_SPIRIT2[[#This Row],[Opération]],tbl_Histo_SPIRIT2[[#This Row],[Opération]]) -> 56,000.00 | E11: 58,239.32 | F11: =tbl_Histo_SPIRIT2[[#This Row],[Valorisation]]-tbl_Histo_SPIRIT2[[#This Row],[Net Investi]] -> 2,239.32 | G11: =tbl_Histo_SPIRIT2[[#This Row],[ +/- Value]]/tbl_Histo_SPIRIT2[[#This Row],[Net Investi]] -> 4% | H11: =IFERROR(tbl_Histo_SPIRIT2[[#This Row],[ +/- Value]]/tbl_Histo_SPIRIT2[[#This Row],[Ans Cumul.]]/tbl_Histo_SPIRIT2[[#This Row],[Invest. Moyen]],0) -> 2% | I11: =IFERROR(tbl_Histo_SPIRIT2[[#This Row],[Nb Cumul]]/tbl_Histo_SPIRIT2[[#This Row],[Bissextile]]/tbl_Histo_SPIRIT2[[#This Row],[Ans Cumul.]],0) -> 74,139.49 | J11: =IFERROR(DATEDIF(B10,tbl_Histo_SPIRIT2[[#This Row],[Date]],"D"),0) -> 25 | K11: =DATEDIF($B$8,tbl_Histo_SPIRIT2[[#This Row],[Date]],"D")/tbl_Histo_SPIRIT2[[#This Row],[Bissextile]] -> 1.51 | L11: =IFERROR(D10*tbl_Histo_SPIRIT2[[#This Row],[Jours/Période]]+L10,0) -> 40,925,000
A12: =IF(OR(MOD(YEAR(tbl_Histo_SPIRIT2[[#This Row],[Date]]),400)=0,AND(MOD(YEAR(tbl_Histo_SPIRIT2[[#This Row],[Date]]),4)=0,MOD(YEAR(tbl_Histo_SPIRIT2[[#This Row],[Date]]),100)<>0)),366,365) -> 366 | B12: 2024-12-31 | D12: =IFERROR(D11+tbl_Histo_SPIRIT2[[#This Row],[Opération]],tbl_Histo_SPIRIT2[[#This Row],[Opération]]) -> 56,000.00 | E12: 64,227.86 | F12: =tbl_Histo_SPIRIT2[[#This Row],[Valorisation]]-tbl_Histo_SPIRIT2[[#This Row],[Net Investi]] -> 8,227.86 | G12: =tbl_Histo_SPIRIT2[[#This Row],[ +/- Value]]/tbl_Histo_SPIRIT2[[#This Row],[Net Investi]] -> 15% | H12: =IFERROR(tbl_Histo_SPIRIT2[[#This Row],[ +/- Value]]/tbl_Histo_SPIRIT2[[#This Row],[Ans Cumul.]]/tbl_Histo_SPIRIT2[[#This Row],[Invest. Moyen]],0) -> 5% | I12: =IFERROR(tbl_Histo_SPIRIT2[[#This Row],[Nb Cumul]]/tbl_Histo_SPIRIT2[[#This Row],[Bissextile]]/tbl_Histo_SPIRIT2[[#This Row],[Ans Cumul.]],0) -> 66,907.41 | J12: =IFERROR(DATEDIF(B11,tbl_Histo_SPIRIT2[[#This Row],[Date]],"D"),0) -> 366 | K12: =DATEDIF($B$8,tbl_Histo_SPIRIT2[[#This Row],[Date]],"D")/tbl_Histo_SPIRIT2[[#This Row],[Bissextile]] -> 2.51 | L12: =IFERROR(D11*tbl_Histo_SPIRIT2[[#This Row],[Jours/Période]]+L11,0) -> 61,421,000
A13: =IF(OR(MOD(YEAR(tbl_Histo_SPIRIT2[[#This Row],[Date]]),400)=0,AND(MOD(YEAR(tbl_Histo_SPIRIT2[[#This Row],[Date]]),4)=0,MOD(YEAR(tbl_Histo_SPIRIT2[[#This Row],[Date]]),100)<>0)),366,365) -> 365 | B13: 2025-02-17 | C13: 4,000.00 | D13: =IFERROR(D12+tbl_Histo_SPIRIT2[[#This Row],[Opération]],tbl_Histo_SPIRIT2[[#This Row],[Opération]]) -> 60,000.00 | E13: 70,507.39 | F13: =tbl_Histo_SPIRIT2[[#This Row],[Valorisation]]-tbl_Histo_SPIRIT2[[#This Row],[Net Investi]] -> 10,507.39 | G13: =tbl_Histo_SPIRIT2[[#This Row],[ +/- Value]]/tbl_Histo_SPIRIT2[[#This Row],[Net Investi]] -> 18% | H13: =IFERROR(tbl_Histo_SPIRIT2[[#This Row],[ +/- Value]]/tbl_Histo_SPIRIT2[[#This Row],[Ans Cumul.]]/tbl_Histo_SPIRIT2[[#This Row],[Invest. Moyen]],0) -> 6% | I13: =IFERROR(tbl_Histo_SPIRIT2[[#This Row],[Nb Cumul]]/tbl_Histo_SPIRIT2[[#This Row],[Bissextile]]/tbl_Histo_SPIRIT2[[#This Row],[Ans Cumul.]],0) -> 66,365.42 | J13: =IFERROR(DATEDIF(B12,tbl_Histo_SPIRIT2[[#This Row],[Date]],"D"),0) -> 48 | K13: =DATEDIF($B$8,tbl_Histo_SPIRIT2[[#This Row],[Date]],"D")/tbl_Histo_SPIRIT2[[#This Row],[Bissextile]] -> 2.65 | L13: =IFERROR(D12*tbl_Histo_SPIRIT2[[#This Row],[Jours/Période]]+L12,0) -> 64,109,000
A14: =IF(OR(MOD(YEAR(tbl_Histo_SPIRIT2[[#This Row],[Date]]),400)=0,AND(MOD(YEAR(tbl_Histo_SPIRIT2[[#This Row],[Date]]),4)=0,MOD(YEAR(tbl_Histo_SPIRIT2[[#This Row],[Date]]),100)<>0)),366,365) -> 365 | B14: 2025-05-10 | D14: =IFERROR(D13+tbl_Histo_SPIRIT2[[#This Row],[Opération]],tbl_Histo_SPIRIT2[[#This Row],[Opération]]) -> 60,000.00 | E14: 66,697.68 | F14: =tbl_Histo_SPIRIT2[[#This Row],[Valorisation]]-tbl_Histo_SPIRIT2[[#This Row],[Net Investi]] -> 6,697.68 | G14: =tbl_Histo_SPIRIT2[[#This Row],[ +/- Value]]/tbl_Histo_SPIRIT2[[#This Row],[Net Investi]] -> 11% | H14: =IFERROR(tbl_Histo_SPIRIT2[[#This Row],[ +/- Value]]/tbl_Histo_SPIRIT2[[#This Row],[Ans Cumul.]]/tbl_Histo_SPIRIT2[[#This Row],[Invest. Moyen]],0) -> 4% | I14: =IFERROR(tbl_Histo_SPIRIT2[[#This Row],[Nb Cumul]]/tbl_Histo_SPIRIT2[[#This Row],[Bissextile]]/tbl_Histo_SPIRIT2[[#This Row],[Ans Cumul.]],0) -> 65,867.37 | J14: =IFERROR(DATEDIF(B13,tbl_Histo_SPIRIT2[[#This Row],[Date]],"D"),0) -> 82 | K14: =DATEDIF($B$8,tbl_Histo_SPIRIT2[[#This Row],[Date]],"D")/tbl_Histo_SPIRIT2[[#This Row],[Bissextile]] -> 2.87 | L14: =IFERROR(D13*tbl_Histo_SPIRIT2[[#This Row],[Jours/Période]]+L13,0) -> 69,029,000

Sheet Infos
B2: FISCALITE
B11: INFORMATIONS
